Cogmind - Beta 9.6 @@@ ROGUE MODE // 2020.07.14 @ 20:09:25 Player: Lyft Result: Destroyed by D-53 Grenadier with Mini Grenade Launcher Performance ------------- Evolutions (0) 0 Regions Visited (2) 400 Robots Destroyed (16) 80 Value Destroyed (181) 181 Prototype IDs (0) 0 Alien Tech Used (0) 0 Bonus (0) 0 TOTAL SCORE: 661 Bonus ------- None Cogmind --------- Core Integrity 0/250 Matter 240/300 Energy 107/125 System Corruption 6% Temperature Cool (0) Movement Core (100) Ox1 Location -10/Mines Parts ------- > --- POWER (1) -------- Light Ion Engine > --- PROPULSION (2) --- (None) > --- UTILITY (2) ------ Improved Heat Sink > --- WEAPON (2) ------- (None) > --- INVENTORY (4) ---- Experimental Sensor Array Hacking Suite Peak State ------------ > --- POWER ------------ Ion Engine > --- PROPULSION ------- Light Treads Light Treads > --- UTILITY ---------- Medium Storage Unit High-capacity Storage Unit > --- WEAPON ----------- EM Pulse Gun Medium Laser > --- INVENTORY -------- Ion Engine Light Ion Engine Wheel Compact Wheel Improved Heat Sink Large Matter Pod Grenade Launcher Mining Claw [Rating: 8] Favorites ----------- Power Ion Engine Engine Ion Engine Propulsion Light Treads Treads Light Treads Leg Aluminum Leg Wheel Wheel Utility High-capacity Storage Unit Device Improved Heat Sink Storage High-capacity Storage Unit Weapon EM Pulse Gun Energy Gun EM Pulse Gun Launcher Grenade Launcher Build | -11 -10 -10 ------- Run | Scr Mat Min Slots Evolved . | . . . Power . | . . . Propulsion . | . . . Utility . | . . . Weapon . | . . . Parts Attached 13 | 2 5 6 Power 2 | . 1 1 Engine 2 | . 1 1 Core . | . . . Reactor . | . . . Propulsion 5 | 2 1 2 Treads 2 | 1 1 . Leg . | . . . Wheel 3 | 1 . 2 Hover . | . . . Flight . | . . . Utility 3 | . 2 1 Device 1 | . . 1 Storage 2 | . 2 . Processor . | . . . Hackware . | . . . Protection . | . . . Artifact . | . . . Weapon 3 | . 1 2 Energy Gun 2 | . 1 1 Energy Cannon . | . . . Ballistic Gun . | . . . Ballistic Cannon . | . . . Launcher 1 | . . 1 Special Weapon . | . . . Impact Weapon . | . . . Slashing Weapon . | . . . Piercing Weapon . | . . . Special Melee Weapon . | . . . Unidentified Prototypes . | . . . Parts Lost 9 | . 1 8 Power 1 | . . 1 Propulsion 4 | . . 4 Utility . | . . . Weapon 4 | . 1 3 Highest Loss Streak 8 | . 1 8 Average Slot Usage (%) 97 | . 97 97 Engine 14 | . 14 14 Treads 23 | . 23 25 Wheel 3 | . 4 . Storage 26 | . 25 28 Energy Gun 27 | . 28 25 Naked Turns . | . . . Heaviest Build 49 | 13 49 49 Greatest Support 40 | 10 40 40 Greatest Overweight (x) 4 | 1 4 1 Average Overweight (x) 1 | 1 1 1 Largest Inventory Capacity 16 | 6 16 16 Average Capacity 14 | 6 13 15 Most Carried 10 | 6 9 10 Average Carried 7 | 4 7 9 Final Capacity 16 | 6 16 4 Final Carried 9 | 4 9 2 Class Distribution -------------------- 100% | Mutant Dominant Class ---------------- Mutant | -10/Materials Mutant | -10/Mines Resources | -11 -10 -10 ----------- Run | Scr Mat Min Matter Collected 415 | 220 195 . Remotely . | . . . Salvage Created 357 | 65 254 38 Parts 22 | 3 19 . Haulers Intercepted 1 | . 1 . Recyclers Shooed . | . . . Parts Field Recycled . | . . . Retrieved Matter . | . . . Parts Self-Destructed . | . . . Prevented . | . . . Kills | -11 -10 -10 ------- Run | Scr Mat Min Combat Hostiles Destroyed 11 | . 3 8 Guns 3 | . 3 . AOE 8 | . . 8 Classes Destroyed 6 | 1 4 1 Hauler 1 | . 1 . Recycler 1 | 1 . . Operator 1 | . 1 . Watcher 2 | . 2 . Grunt 3 | . 3 . Assembled 8 | . . 8 Best Kill Streak 8 | 1 3 8 Combat Bots Only 8 | . 2 8 Max Kills in Single Turn 4 | 1 1 4 Gunslinging . | . . . Exploded 4 | . . 4 Melee . | . . . Uniques/NPCs Destroyed . | . . . Combat | -11 -10 -10 -------- Run | Scr Mat Min Damage Taken 1259 | 38 241 980 Core 299 | . . 299 Absorbed by Shields . | . . . Core Remaining (%) 100 | 100 . . Volleys Fired 22 | 1 16 5 Largest 2 | 2 2 1 Hottest 90 | 90 90 50 Shots Fired 39 | 2 32 5 Gun 35 | 2 32 1 Cannon . | . . . Launcher 4 | . . 4 Special . | . . . Kinetic . | . . . Thermal 18 | 1 16 1 Explosive 4 | . . 4 Electromagnetic 17 | 1 16 . Robot Hit Streak 13 | 2 10 13 Robot Miss Streak 2 | . 2 2 Penetration Max . | . . . Secondary Targets . | . . . Shots Hit Robots 28 | 2 23 3 Core Hits 27 | 1 10 16 Critical Hits . | . . . Critical Kills . | . . . Critical Parts Destroyed . | . . . Melee Attacks . | . . . Impact . | . . . Slashing . | . . . Piercing . | . . . Sneak Attacks . | . . . Combat Hostiles . | . . . Follow-up Attacks . | . . . Damage Inflicted 948 | 52 392 504 Guns 372 | 13 359 . Cannons . | . . . Explosions 576 | 39 33 504 Melee . | . . . Ramming . | . . . Kinetic . | . . . Thermal 200 | 39 161 . Explosive 504 | . . 504 Electromagnetic 244 | 13 231 . Impact . | . . . Slashing . | . . . Piercing . | . . . Highest Corruption 6 | . 1 6 Average Corruption 1 | . 1 1 Corruption Purged . | . . . Effects 6 | . 5 1 Message Errors 4 | . 4 . Energy Discharges 1 | . 1 . Data Loss (minor) 1 | . . 1 Overload Shots . | . . . Overflow Damage . | . . . Projectiles . | . . . Explosions . | . . . Melee . | . . . Knockbacks . | . . . Impact . | . . . Kinetic . | . . . Secondary . | . . . Self-Inflicted Damage 70 | 38 32 . Shots 2 | 1 1 . Rammed . | . . . Targets Rammed . | . . . Kicked . | . . . Crushed . | . . . Highest Temperature 214 | 42 214 5 Average Temperature 56 | 24 59 5 Received Heat Transfer 117 | . 117 . Siege Activations . | . . . Robots Corrupted . | . . . Combat Hostiles . | . . . Parts Fried 1 | . 1 . Impact Corruptions . | . . . Robots Melted . | . . . Combat Hostiles . | . . . Parts Melted . | . . . Heat Transferred 420 | 50 370 . Parts Sabotaged . | . . . Parts Stolen . | . . . Parts Stripped . | . . . Power Chain Reactions 2 | 1 1 . Missiles Intercepted . | . . . Alert | -11 -10 -10 ------- Run | Scr Mat Min Peak Influence 118 | 5 118 . Average Influence 26 | 2 33 . Maximum Alert Level . | . . . Low Security (%) 100 | 100 100 100 Level 1 . | . . . Level 2 . | . . . Level 3 . | . . . Level 4 . | . . . Level 5 . | . . . High Security . | . . . Max Security . | . . . Squads Dispatched 2 | . 2 . Investigation 1 | . 1 . Extermination . | . . . Reinforcement 1 | . 1 . Assault . | . . . Garrison . | . . . Intercept . | . . . Construction Impeded . | . . . Haulers Reinforced . | . . . Stealth | -11 -10 -10 --------- Run | Scr Mat Min Distress Signals . | . . . Communications Jammed . | . . . Distress Signals . | . . . Times Spotted 24 | . 6 18 Peak Tracking Total 19 | . 2 19 Tactical Retreats 1 | . . 1 Traps | -11 -10 -10 ------- Run | Scr Mat Min Traps Triggered 2 | . 2 . Indirectly . | . . . Trap Hack Attempts . | . . . Triggered . | . . . Disarmed . | . . . Reprogrammed . | . . . Reused . | . . . Traps Extracted . | . . . Installed . | . . . Triggered . | . . . Machines | -11 -10 -10 ---------- Run | Scr Mat Min Machines Disabled 1 | . 1 . Max in Single Turn 1 | . 1 . Machines Sabotaged . | . . . Garrisons Compromised . | . . . Overloaded Fab Kills . | . . . Fab Network Shutdowns . | . . . Hacking | -11 -10 -10 --------- Run | Scr Mat Min Machines Accessed 7 | . 7 . Terminals 6 | . 6 . Fabricators . | . . . Repair Stations 1 | . 1 . Recycling Units . | . . . Scanalyzers . | . . . Garrison Access . | . . . Total Hacks 18 | . 18 . Successful 12 | . 12 . Failed 6 | . 6 . Catastrophic . | . . . Database Lockouts . | . . . Manual 15 | . 15 . Terminals 15 | . 15 . Fabricators . | . . . Repair Stations 3 | . 3 . Recycling Units . | . . . Scanalyzers . | . . . Garrison Access . | . . . Terminal Hacks 6 | . 6 . Robot Analysis 3 | . 3 . Terminal Index 2 | . 2 . Recall Investigation 1 | . 1 . Fabricator Hacks . | . . . Repair Station Hacks 2 | . 2 . Scan Component 1 | . 1 . Repair 1 | . 1 . Recycling Unit Hacks . | . . . Scanalyzer . | . . . Garrison Access Hacks . | . . . Unauthorized Hacks 4 | . 4 . Terminals 3 | . 3 . Botnet 2 | . 2 . Operators 1 | . 1 . Fabricators . | . . . Repair Stations 1 | . 1 . Mechanics 1 | . 1 . Recycling Units . | . . . Scanalyzers . | . . . Garrison Access . | . . . Data Cores Recovered . | . . . Used . | . . . Hacking Detections 7 | . 7 . Full Trace Events 1 | . 1 . Feedback Events . | . . . Feedback Blocked . | . . . Robot Schematics Acquired . | . . . Robots Built . | . . . Matter . | . . . Time . | . . . Total Robot Build Rating . | . . . Part Schematics Acquired . | . . . Parts Built . | . . . Matter . | . . . Time . | . . . Total Part Build Rating . | . . . Parts Repaired 1 | . 1 . Time 26 | . 26 . Parts Recycled . | . . . Recycled Matter . | . . . Retrieved Matter . | . . . Retrieved Components . | . . . Parts Scanalyzed . | . . . Part Schematics Acquired . | . . . Parts Damaged . | . . . Bothacking | -11 -10 -10 ------------ Run | Scr Mat Min Used RIF Installer . | . . . Robots Hacked . | . . . Non-combat . | . . . Combat . | . . . Robot Hacks Applied . | . . . Relay Couplers Released . | . . . Robots Rewired . | . . . Allies Hacked . | . . . Hacks Repelled . | . . . Allies | -11 -10 -10 -------- Run | Scr Mat Min Total Allies . | . . . Largest Group . | . . . Highest-Rated Group . | . . . Highest-Rated Ally . | . . . Total Orders . | . . . Ally Attacks . | . . . Total Damage . | . . . Kills . | . . . Allies Corrupted . | . . . Allies Melted . | . . . Intel | -11 -10 -10 ------- Run | Scr Mat Min Robot Analysis Total 3 | . 3 . Derelict Logs Recovered 1 | . . 1 Drone Launches . | . . . Drone Recoveries . | . . . Exploration | -11 -10 -10 ------------- Run | Scr Mat Min Turns Passed 1077 | 17 858 202 Spaces Moved 527 | 6 423 98 Core 1 | . . 1 Treads 255 | . 158 97 Legs . | . . . Wheels 271 | 6 265 . Hover . | . . . Flight . | . . . Fastest Speed 90 | 90 90 100 Average Speed 140 | 90 132 179 Slowest Speed 180 | 90 180 180 Overloaded Moves . | . . . Propulsion Burnouts . | . . . Robots Hopped . | . . . Cave-ins Triggered 1 | . . 1 Exploration Rate (%) 26 | 2 50 27 Regions Visited 2 Branch Regions 1 Pre-discovered Areas 1 | . . 1 Known Exits Taken . | . . . Unknown Exits Taken 2 | 1 1 . Scrap Searched . | . . . Spaces Dug . | . . . Terrain Destroyed 23 | . 3 20 Melee . | . . . Projectile . | . . . AOE 23 | . 3 20 Actions | -11 -10 -10 --------- Run | Scr Mat Min Total 823 | 16 686 121 Wait 245 | 6 233 6 Move 525 | 5 422 98 Hop . | . . . Pick Up 10 | . 9 1 Fast Attach . | . . . Attach 9 | 2 2 5 Detach . | . . . Swap 4 | . 3 1 Drop 8 | 2 1 5 Fire 22 | 1 16 5 Melee . | . . . Ram . | . . . Kick . | . . . Crush . | . . . Escape Stasis . | . . . Rewire . | . . . Trap . | . . . Miscellaneous . | . . . Route ------- -11/Scrapyard -10/Materials (discovered 2 exits: [*Mat] / [*Min]) -10/Mines (discovered 1 exit: [*Mat]) History --------- Turn | Location | Event 13 | -11/Scrapyard | Discovered new exit (range 3) 18 | -11/Scrapyard | Entered Materials 150 | -10/Materials | Discovered new exit (range 15) 325 | -10/Materials | Build established: Mutant 351 | -10/Materials | Discovered new exit (range 9) 839 | -10/Materials | Repaired Ion Engine 876 | -10/Materials | Entered Mines 889 | -10/Mines | Met a Derelict bent on vengeance 916 | -10/Mines | Found a damaged Exp. Sensor Array with a note attached 923 | -10/Mines | Found Prototype Device 948 | -10/Mines | Learned location of Zion (-6) 989 | -10/Mines | Discovered new exit (range 6) 1048 | -10/Mines | Assembled infested the area 1053 | -10/Mines | Assisted by a Guerilla fighting off Assembled 1068 | -10/Mines | Crushed by falling debris 1068 | -10/Mines | Core integrity fell below 50% 1069 | -10/Mines | Core integrity fell below 20% 1078 | -10/Mines | Destroyed by D-53 Grenadier with Mini Grenade Launcher Last Messages --------------- 01065_ as-67763 destroyed. 01066_ EM Pulse Gun destroyed. 01067_ The unstable cave ceiling collapses. 01068_ Crushed by falling debris. 01068_ Wheel destroyed. 01068_ System corrupted by crushing effect (+3). 01068_ Grenade Launcher destroyed. 01068_ System corrupted by crushing effect (+2). 01068_ Lgt. Treads destroyed. 01069_ The unstable cave ceiling collapses. 01072_ Com. Wheel destroyed. 01072_ Ion Engine destroyed. 01072_ Med. Laser destroyed. 01074_ Dropped Ion Engine. 01074_ Dropped Med. Storage Unit. 01075_ Dropped Mining Claw. 01075_ Dropped Lrg. Matter Pod. 01076_ The unstable cave ceiling collapses. 01076_ Dropped Hcp. Storage Unit. 01078_ The unstable cave ceiling collapses. Map ----- +----------------------------------------------------+ | ?????????????????????????????????????????????????? | | ?????????????????????????????????????????????????? | | ?????????????????????????????????????????????????? | | ?????????????????????????????????????????????????? | | ?????????????????????????????????????????????????? | | ?????????????????????????????????????????????????? | | ?????????????????????????????????????????????????? | | ?????????????????????????????????????????????????? | | ?????????????????????????????????????????????????? | | ????????????????????????????????????###??????????? | | ????????????????????????????????????# ??????????? | | ????????????????????????????????????# #??????????? | | ??????????????????????????????####### #??????????# | | ??????????????????????????????# ## #?????????## | | ??????????????????????????????# ## ####??????# | | ??????????????????????????????# < #??????# | | ??????????????????????????????# ##?????## | | ??????????????????????????????# #### #??????# | | ??????????????????????????????# #?## #??????# | | ??????????????????????#######?# #?# #?????## | | ?????????????????????## # ### #?# #?????# | | ????????????????????## #### ##?# ##????# | | ???????????????????## # #?# #??# #????# | | ???????????????????# ! ### #??# #????## | | ???????????????????# !*/ d% #?## #????## | | ???????????????????# @ ####### ##???# | | ???????????????????# #????# ##??# | | ???????????????????## ####### #??# | | ????????????????????# # #??# | | ???????????????????# a ## #??## | | ??????????????????# #### ## ### ##?## | | ??????????????????# ?????#??#?## ### | | ?????????????????# ???????????#### | | ????????????????# ??????????????## | | ???????????????? ???????????????## # | | ??????????????? # % ????????????????## #### | | ?????????????? ## ?????????????????# #??? | | ???????????????##?### ##?????????????????# #??? | | ???????????????????? #???????????????????# #??? | | ???????????????????? ???????????????????? #??? | | ????????????????????? ??????????????????? #??? | | ??????????????????????????????????????????#####??? | | ?????????????????????????????????????????????????? | | ?????????????????????????????????????????????????? | | ?????????????????????????????????????????????????? | | ?????????????????????????????????????????????????? | | ?????????????????????????????????????????????????? | | ?????????????????????????????????????????????????? | | ?????????????????????????????????????????????????? | | ?????????????????????????????????????????????????? | +----------------------------------------------------+ Best States ------------- Heat Dissipation 25 Energy Generation 10 Energy Capacity 250 Matter Stores 300 Matter Capacity 300 Sight Range 16 Terrain Scan Density 10 Evasion (%) 42 Recoil Reduction 2 Item Schematics ----------------- None Robot Schematics ------------------ None Fabricated ------------ Nothing Alien Tech Used ----------------- None Achievements -------------- None Challenges ------------ None Game ------ Seed IntegrityBeamActivator Manual? 0 Play Time 00:15:01 Cumulative 13.7 hours Start 2020.07.14 @ 19:56:53 End 2020.07.14 @ 20:09:25 Sessions 1 Manual Loads 0 Difficulty Rogue Special Mode None Game No. 30 Rogue 28 Adventurer 1 Explorer 1 Win Type - Total 0 Types 0/0/0/0/0/0/0 Lore% 22 Gallery% 26 Achievement% 19 Wizard Run 0 Options --------- ASCII 0 Keyboard 0 Movement Mouse Keybinds 0 Fullscreen 2 Font 24/Terminus Map View 76x50 Tactical HUD 1 Map Filters NONE Filters NONE Steam 1 RUN: 72f4f02d-3b54-4b6d-a494-f27c1b911dfc